lending/lending_fUSD_20250121
["ID","MTS","AMOUNT","RATE_DAILY","PERIOD"]
[349769230,1737418251982,-500.0,0.00021442,2]
[349769231,1737418251991,-500.0,0.00021442,2]
[349769232,1737418252000,-374.40045016,0.00021442,2]
[349769233,1737418252009,-500.0,0.00021442,2]
[349769234,1737418252019,-500.0,0.00021442,2]
[349769235,1737418252028,-500.0,0.00021442,2]
[349769236,1737418252037,-500.0,0.00021442,2]
[349769237,1737418252047,-500.0,0.00021442,2]
[349769238,1737418252057,-573.04,0.00021442,2]
[349769239,1737418252067,-345.47582312,0.00021442,2]
[349769240,1737418252076,-500.0,0.00021442,2]
[349769241,1737418252088,-703.05,0.00021442,2]
[349769242,1737418252097,-500.0,0.00021442,2]
[349769243,1737418252106,-500.0,0.00021442,2]
[349769244,1737418252116,-621.07,0.00021442,2]
[349769245,1737418252125,-1146.45,0.00021442,2]
[349769246,1737418252135,-251.293089,0.00021442,2]
[349769247,1737418252145,-500.0,0.00021442,2]
[349769248,1737418252154,-817.86,0.00021442,2]
[349769249,1737418252163,-500.0,0.00021442,2]
[349769250,1737418252172,-500.0,0.00021442,2]
[349769251,1737418252182,-1131.27,0.00021442,2]
[349769252,1737418252191,-156.45728,0.00021442,2]
[349769253,1737418252202,-500.0,0.00021442,2]
[349769254,1737418252211,-500.0,0.00021442,2]
[349769255,1737418252221,-801.7,0.00021442,2]
[349769256,1737418252231,-500.0,0.00021442,2]
[349769257,1737418252240,-1535.42,0.00021442,2]
[349769258,1737418252249,-830.37,0.00021442,2]
[349769259,1737418252260,-829.35,0.00021442,2]
[349769260,1737418252269,-514.18,0.00021442,2]
[349769261,1737418252279,-1187.21,0.00021442,2]
[349769262,1737418252288,-500.0,0.00021442,2]
[349769263,1737418252298,-570.16,0.00021442,2]
[349769264,1737418252308,-703.91,0.00021442,2]
[349769265,1737418252317,-1413.53,0.00021442,2]
[349769266,1737418252326,-550.62,0.00021442,2]
[349769267,1737418252339,-894.6,0.00021442,2]
[349769268,1737418252348,-438.4,0.00021459,2]
[349769269,1737418252358,-438.4,0.00021459,2]
[349769270,1737418252367,-438.19,0.00021459,2]
[349769271,1737418252376,-366.2201926,0.0002156,2]
[349769272,1737418252385,-53579.83411439,0.00021614,2]
[349769273,1737418252395,-530.13,0.00021616,2]
[349769274,1737418252404,-517.52,0.00021616,2]
[349769275,1737418252414,-500.0,0.00021616,2]
[349769276,1737418252423,-657.88,0.00021616,2]
[349769277,1737418252433,-1011.35,0.00021616,2]
[349769278,1737418252442,-726.57,0.00021616,2]
[349769279,1737418252451,-1153.79,0.00021616,2]
[349769280,1737418252460,-573.65,0.00021616,2]
[349769281,1737418252470,-910.43,0.00021616,2]
[349769282,1737418252479,-794.24,0.00021616,2]
[349769283,1737418252488,-500.0,0.00021616,2]
[349769284,1737418252497,-500.0,0.00021616,2]
[349769285,1737418252507,-1131.13,0.00021616,2]
[349769286,1737418252517,-500.0,0.00021616,2]
[349769287,1737418252529,-1391.68,0.00021616,2]
[349769288,1737418252539,-1472.73,0.00021616,2]
[349769289,1737418252548,-583.24,0.00021616,2]
[349769290,1737418252558,-500.0,0.00021616,2]
[349769291,1737418252568,-171.86,0.00021642,2]
[349769292,1737418252578,-255.792562,0.00021642,2]
[349769293,1737418252589,-500.0,0.00021642,2]
[349769294,1737418252602,-696.22,0.00021642,2]
[349769295,1737418252612,-583.13,0.00021642,2]
[349769296,1737418252621,-500.0,0.00021642,2]
[349769297,1737418252631,-500.0,0.00021642,2]
[349769298,1737418252639,-1186.32,0.00021642,2]
[349769299,1737418252649,-2319.64,0.00021642,2]
[349769300,1737418252658,-500.0,0.00021642,2]
[349769301,1737418252667,-500.0,0.00021642,2]
[349769302,1737418252677,-500.0,0.00021642,2]
[349769303,1737418252687,-500.0,0.00021642,2]
[349769304,1737418252696,-1126.99,0.00021642,2]
[349769305,1737418252705,-1444.67,0.00021642,2]
[349769306,1737418252716,-500.0,0.00021642,2]
[349769307,1737418252726,-531.88,0.00021642,2]
[349769308,1737418252735,-617.28,0.00021642,2]
[349769309,1737418252745,-600.33,0.00021642,2]
[349769310,1737418252754,-1768.27,0.00021642,2]
[349769311,1737418252763,-500.0,0.00021642,2]
[349769312,1737418252772,-883.44,0.00021642,2]
[349769313,1737418252782,-764.18,0.00021642,2]
[349769314,1737418252791,-914.35,0.00021642,2]
[349769315,1737418252800,-258.06980835,0.00021647,2]
[349769316,1737418252809,-4097.51,0.00021685,7]
[349769317,1737418252818,-4097.51,0.00021685,7]
[349769318,1737418252827,-4097.51,0.00021685,7]
[349769319,1737418252838,-4097.51,0.00021685,7]
[349769320,1737418252847,-587.0,0.00021687,2]
[349769321,1737418252856,-429.93842548,0.00021705,2]
[349769322,1737418252865,-500.0,0.00021715,2]
[349769323,1737418252875,-534.68,0.00021715,2]
[349769324,1737418252884,-695.21,0.00021715,2]
[349769325,1737418252893,-500.0,0.00021715,2]
[349769326,1737418252902,-500.0,0.00021715,2]
[349769327,1737418252911,-507.8,0.00021715,2]
[349769328,1737418252921,-500.0,0.00021715,2]
[349769329,1737418252930,-500.0,0.00021715,2]
[349769330,1737418252939,-500.0,0.00021715,2]
[349769331,1737418252949,-500.0,0.00021715,2]
[349769332,1737418252960,-500.0,0.00021715,2]
[349769333,1737418252969,-500.0,0.00021715,2]
[349769334,1737418252978,-500.0,0.00021715,2]
[349769335,1737418252988,-500.0,0.00021715,2]
[349769336,1737418252997,-273.97,0.00021715,2]
[349769337,1737418253006,-500.0,0.00021715,2]
[349769338,1737418253016,-500.0,0.00021715,2]
[349769339,1737418253025,-500.0,0.00021715,2]
[349769340,1737418253034,-500.0,0.00021715,2]
[349769341,1737418253044,-500.0,0.00021715,2]
[349769342,1737418253053,-591.26,0.00021715,2]
[349769343,1737418253062,-506.62,0.00021715,2]
[349769344,1737418253071,-538.4,0.00021715,2]
[349769345,1737418253081,-637.21,0.00021715,2]
[349769346,1737418253091,-504.65,0.00021715,2]
[349769347,1737418253100,-500.0,0.00021715,2]
[349769348,1737418253109,-1861.44,0.00021715,2]
[349769349,1737418253118,-703.6,0.00021715,2]
[349769350,1737418253128,-1188.94,0.00021715,2]
[349769351,1737418253137,-500.0,0.00021715,2]
[349769352,1737418253146,-500.0,0.00021715,2]
[349769353,1737418253156,-699.34,0.00021715,2]
[349769354,1737418253165,-1425.53,0.00021715,2]
[349769355,1737418253175,-500.0,0.00021715,2]
[349769356,1737418253185,-642.61,0.00021715,2]
[349769357,1737418253194,-802.3,0.00021715,2]
[349769358,1737418253203,-605.56,0.00021715,2]
[349769359,1737418253213,-664.27,0.00021715,2]
[349769360,1737418253222,-500.0,0.00021715,2]
[349769361,1737418253231,-500.0,0.00021715,2]
[349769362,1737418253240,-500.0,0.00021715,2]
[349769363,1737418253249,-730.71,0.00021715,2]
[349769364,1737418253259,-333.29,0.00021715,2]
[349769365,1737418253268,-500.0,0.00021715,2]
[349769366,1737418253277,-500.0,0.00021715,2]
[349769367,1737418253287,-500.0,0.00021716,2]
[349769368,1737418253296,-500.0,0.00021716,2]
[349769369,1737418253305,-500.0,0.00021716,2]
[349769370,1737418253314,-500.0,0.00021716,2]
[349769371,1737418253324,-388.91695615,0.00021716,2]
[349769372,1737418253335,-500.0,0.00021716,2]
[349769373,1737418253344,-537.95,0.00021716,2]
[349769374,1737418253353,-500.0,0.00021716,2]
[349769375,1737418253363,-500.0,0.00021716,2]
[349769376,1737418253372,-500.0,0.00021716,2]
[349769377,1737418253381,-703.05,0.00021716,2]
[349769378,1737418253390,-500.0,0.00021716,2]
[349769379,1737418253399,-500.0,0.00021716,2]
[349769380,1737418253409,-621.07,0.00021716,2]
[349769381,1737418253418,-1146.45,0.00021716,2]
[349769382,1737418253427,-251.293089,0.00021716,2]
[349769383,1737418253437,-418.3463247,0.00021716,2]
[349769384,1737418253446,-817.86,0.00021716,2]
[349769385,1737418253456,-500.0,0.00021716,2]
[349769386,1737418253465,-500.0,0.00021716,2]
[349769387,1737418253475,-1131.27,0.00021716,2]
[349769388,1737418253484,-156.45728,0.00021716,2]
[349769389,1737418253493,-500.0,0.00021716,2]
[349769390,1737418253503,-500.0,0.00021716,2]
[349769391,1737418253512,-801.7,0.00021716,2]
[349769392,1737418253522,-500.0,0.00021716,2]
[349769393,1737418253535,-1535.42,0.00021716,2]
[349769394,1737418253544,-830.37,0.00021716,2]
[349769395,1737418253553,-829.35,0.00021716,2]
[349769396,1737418253562,-514.18,0.00021716,2]
[349769397,1737418253571,-1187.21,0.00021716,2]
[349769398,1737418253583,-500.0,0.00021716,2]
[349769399,1737418253592,-570.16,0.00021716,2]
[349769400,1737418253601,-703.91,0.00021716,2]
[349769401,1737418253611,-1413.53,0.00021716,2]
[349769402,1737418253620,-550.62,0.00021716,2]
[349769403,1737418253629,-894.6,0.00021716,2]
[349769404,1737418253639,-152.0,0.00021719,3]
[349769405,1737418253649,-68781.65965363,0.000218,2]
[349769406,1737418253658,-500.0,0.00021824,2]
[349769407,1737418253668,-530.13,0.0002189,2]
[349769408,1737418253678,-517.52,0.0002189,2]
[349769409,1737418253688,-500.0,0.0002189,2]
[349769410,1737418253698,-657.88,0.0002189,2]
[349769411,1737418253707,-1011.35,0.0002189,2]
[349769412,1737418253716,-726.57,0.0002189,2]
[349769413,1737418253725,-1153.79,0.0002189,2]
[349769414,1737418253735,-573.65,0.0002189,2]
[349769415,1737418253745,-910.43,0.0002189,2]
[349769416,1737418253754,-794.24,0.0002189,2]
[349769417,1737418253764,-500.0,0.0002189,2]
[349769418,1737418253773,-500.0,0.0002189,2]
[349769419,1737418253782,-1131.13,0.0002189,2]
[349769420,1737418253791,-500.0,0.0002189,2]
[349769421,1737418253800,-1391.68,0.0002189,2]
[349769422,1737418253809,-1472.73,0.0002189,2]
[349769423,1737418253818,-583.24,0.0002189,2]
[349769424,1737418253827,-500.0,0.0002189,2]
[349769425,1737418253838,-500.0,0.0002189,2]
[349769426,1737418253847,-2000.0,0.000219,2]
[349769427,1737418253856,-2000.0,0.000219,2]
[349769428,1737418253865,-2000.0,0.000219,2]
[349769429,1737418253874,-258.06980835,0.000219,2]
[349769430,1737418253884,-170.72031712,0.000219,2]
[349769431,1737418253893,-205.12844974,0.000219,2]
[349769432,1737418253902,-53579.83411439,0.000219,2]
[349769433,1737418253911,-1709.46,0.000219,31]
[349769434,1737418253920,-1709.46,0.000219,31]
[349769435,1737418253929,-1709.46,0.000219,31]
[349769436,1737418253938,-1709.46,0.000219,31]
[349769437,1737418253947,-1709.46,0.000219,31]
[349769438,1737418253956,-1709.46,0.000219,31]
[349769439,1737418253965,-1709.46,0.000219,31]
[349769440,1737418253974,-1709.46,0.000219,31]
[349769441,1737418253983,-1709.46,0.000219,31]
[349769442,1737418253992,-1709.46,0.000219,31]
[349769443,1737418254001,-1709.46,0.000219,31]
[349769444,1737418254010,-1709.46,0.000219,31]
[349769445,1737418254019,-1709.46,0.000219,31]
[349769446,1737418254028,-1709.46,0.000219,31]
[349769447,1737418254037,-1709.46,0.000219,31]
[349769448,1737418254046,-1709.46,0.000219,31]
[349769449,1737418254055,-1831.0,0.000219,2]
[349769450,1737418254064,-474.62117319,0.00021916,2]
[349769451,1737418254074,-696.22,0.00021916,2]
[349769452,1737418254084,-583.13,0.00021916,2]
[349769453,1737418254093,-500.0,0.00021916,2]
[349769454,1737418254102,-500.0,0.00021916,2]
[349769455,1737418254111,-1186.32,0.00021916,2]
[349769456,1737418254120,-2319.64,0.00021916,2]
[349769457,1737418254130,-500.0,0.00021916,2]
[349769458,1737418254140,-500.0,0.00021916,2]
[349769459,1737418254150,-500.0,0.00021916,2]
[349769460,1737418254159,-500.0,0.00021916,2]
[349769461,1737418254168,-1126.99,0.00021916,2]
[349769462,1737418254178,-1444.67,0.00021916,2]
[349769463,1737418254187,-500.0,0.00021916,2]
[349769464,1737418254195,-531.88,0.00021916,2]
[349769465,1737418254204,-617.28,0.00021916,2]
[349769466,1737418254214,-600.33,0.00021916,2]
[349769467,1737418254223,-1768.27,0.00021916,2]
[349769468,1737418254233,-500.0,0.00021916,2]
[349769469,1737418254242,-883.44,0.00021916,2]
[349769470,1737418254251,-764.18,0.00021916,2]
[349769471,1737418254260,-914.35,0.00021916,2]
[349769472,1737418254269,-500.0,0.00021917,3]
[349769473,1737418254278,-500.0,0.00021917,3]
[349769474,1737418254288,-4000.0,0.00021918,2]
[349769475,1737418254297,-150.0,0.00021918,2]
[349769476,1737418254307,-398.8967656,0.0002192,2]
[349769477,1737418254315,-398.8967656,0.0002192,2]
[349769478,1737418254325,-398.8967656,0.0002192,2]
[349769479,1737418254335,-398.8967656,0.0002192,2]
[349769480,1737418254344,-398.8967656,0.0002192,2]
[349769481,1737418254353,-398.8967656,0.0002192,2]
[349769482,1737418254362,-398.8967656,0.0002192,2]
[349769483,1737418254371,-398.8967656,0.0002192,2]
[349769484,1737418254381,-398.8967656,0.0002192,2]
[349769485,1737418254390,-398.8967656,0.0002192,2]
[349769486,1737418254399,-398.8967656,0.0002192,2]
[349769487,1737418254408,-398.8967656,0.0002192,2]
[349769488,1737418254418,-398.8967656,0.0002192,2]
[349769489,1737418254427,-398.8967656,0.0002192,2]
[349769490,1737418254437,-398.8967656,0.0002192,2]
[349769491,1737418254447,-398.8967656,0.0002192,2]
[349769492,1737418254456,-398.8967656,0.0002192,2]
[349769493,1737418254465,-398.8967656,0.0002192,2]
[349769494,1737418254475,-398.8967656,0.0002192,2]
[349769495,1737418254484,-398.89,0.0002192,2]
[349769496,1737418254493,-930.75911973,0.0002192,2]
[349769497,1737418254503,-930.75911973,0.0002192,2]
[349769498,1737418254512,-930.75911973,0.0002192,2]
[349769499,1737418254526,-930.75911973,0.0002192,2]
[349769500,1737418254535,-930.75911973,0.0002192,2]
[349769501,1737418254545,-930.75911973,0.0002192,2]
[349769502,1737418254554,-930.75911973,0.0002192,2]
[349769503,1737418254565,-930.75911973,0.0002192,2]
[349769504,1737418254575,-930.75911973,0.0002192,2]
[349769505,1737418254722,-930.75911973,0.0002192,2]
[349769506,1737418254732,-930.75911973,0.0002192,2]
[349769507,1737418254741,-930.75911973,0.0002192,2]
[349769508,1737418254750,-930.75911973,0.0002192,2]
[349769509,1737418254760,-930.75911973,0.0002192,2]
[349769510,1737418254770,-930.75911973,0.0002192,2]
[349769511,1737418254779,-930.75911973,0.0002192,2]
[349769512,1737418254789,-930.75911973,0.0002192,2]
[349769513,1737418254798,-930.75911973,0.0002192,2]
[349769514,1737418254807,-930.75911973,0.0002192,2]
[349769515,1737418254817,-930.75,0.0002192,2]
[349769516,1737418254827,-1059.90963837,0.0002192,2]
[349769517,1737418254838,-1059.90963837,0.0002192,2]
[349769518,1737418254847,-1059.90963837,0.0002192,2]
[349769519,1737418254857,-1059.90963837,0.0002192,2]
[349769520,1737418254867,-1059.90963837,0.0002192,2]
[349769521,1737418254877,-1059.90963837,0.0002192,2]
[349769522,1737418254886,-1059.90963837,0.0002192,2]
[349769523,1737418254895,-1059.90963837,0.0002192,2]
[349769524,1737418254904,-1059.90963837,0.0002192,2]
[349769525,1737418254915,-1059.90963837,0.0002192,2]
[349769526,1737418254924,-1059.90963837,0.0002192,2]
[349769527,1737418254933,-1059.90963837,0.0002192,2]
[349769528,1737418254943,-1059.90963837,0.0002192,2]
[349769529,1737418254952,-1059.90963837,0.0002192,2]
[349769530,1737418254962,-1059.90963837,0.0002192,2]
[349769531,1737418254971,-1059.90963837,0.0002192,2]
[349769532,1737418254980,-1059.90963837,0.0002192,2]
[349769533,1737418254990,-1059.90963837,0.0002192,2]
[349769534,1737418254999,-1059.90963837,0.0002192,2]
[349769535,1737418255010,-1059.9,0.0002192,2]
[349769536,1737418255019,-2473.12248953,0.0002192,2]
[349769537,1737418255029,-2473.12248953,0.0002192,2]
[349769538,1737418255038,-2473.12248953,0.0002192,2]
[349769539,1737418255047,-2473.12248953,0.0002192,2]
[349769540,1737418255057,-2473.12248953,0.0002192,2]
[349769541,1737418255066,-2473.12248953,0.0002192,2]
[349769542,1737418255076,-2473.12248953,0.0002192,2]
[349769543,1737418255088,-2473.12248953,0.0002192,2]
[349769544,1737418255098,-2473.12248953,0.0002192,2]
[349769545,1737418255108,-2473.12248953,0.0002192,2]
[349769546,1737418255118,-2473.12248953,0.0002192,2]
[349769547,1737418255128,-2473.12248953,0.0002192,2]
[349769548,1737418255138,-2473.12248953,0.0002192,2]
[349769549,1737418255148,-2473.12248953,0.0002192,2]
[349769550,1737418255157,-2473.12248953,0.0002192,2]
[349769551,1737418255166,-2473.12248953,0.0002192,2]
[349769552,1737418255175,-2473.12248953,0.0002192,2]
[349769553,1737418255184,-2473.12248953,0.0002192,2]
[349769554,1737418255194,-2473.12248953,0.0002192,2]
[349769555,1737418255203,-2473.12,0.0002192,2]
[349769556,1737418255212,-537.38973346,0.0002192,2]
[349769557,1737418255222,-537.38973346,0.0002192,2]
[349769558,1737418255231,-537.38973346,0.0002192,2]
[349769559,1737418255242,-537.38973346,0.0002192,2]
[349769560,1737418255252,-537.38973346,0.0002192,2]
[349769561,1737418255261,-537.38973346,0.0002192,2]
[349769562,1737418255270,-537.38973346,0.0002192,2]
[349769563,1737418255280,-537.38973346,0.0002192,2]
[349769564,1737418255290,-537.38973346,0.0002192,2]
[349769565,1737418255299,-537.38973346,0.0002192,2]
[349769566,1737418255308,-537.38973346,0.0002192,2]
[349769567,1737418255317,-537.38973346,0.0002192,2]
[349769568,1737418255326,-537.38973346,0.0002192,2]
[349769569,1737418255340,-537.38973346,0.0002192,2]
[349769570,1737418255349,-537.38973346,0.0002192,2]
[349769571,1737418255359,-537.38973346,0.0002192,2]
[349769572,1737418255368,-537.38973346,0.0002192,2]
[349769573,1737418255378,-537.38973346,0.0002192,2]
[349769574,1737418255388,-537.38973346,0.0002192,2]
[349769575,1737418255397,-537.38,0.0002192,2]
[349769576,1737418255407,-1253.90937807,0.0002192,2]
[349769577,1737418255417,-1253.90937807,0.0002192,2]
[349769578,1737418255427,-1253.90937807,0.0002192,2]
[349769579,1737418255437,-1253.90937807,0.0002192,2]
[349769580,1737418255447,-1253.90937807,0.0002192,2]
[349769581,1737418255456,-1253.90937807,0.0002192,2]
[349769582,1737418255465,-1253.90937807,0.0002192,2]
[349769583,1737418255474,-1253.90937807,0.0002192,2]
[349769584,1737418255485,-1253.90937807,0.0002192,2]
[349769585,1737418255494,-1253.90937807,0.0002192,2]
[349769586,1737418255504,-1253.90937807,0.0002192,2]
[349769587,1737418255513,-1253.90937807,0.0002192,2]
[349769588,1737418255523,-1253.90937807,0.0002192,2]
[349769589,1737418255535,-1253.90937807,0.0002192,2]
[349769590,1737418255545,-1253.90937807,0.0002192,2]
[349769591,1737418255554,-1253.90937807,0.0002192,2]
[349769592,1737418255563,-1253.90937807,0.0002192,2]
[349769593,1737418255574,-1253.90937807,0.0002192,2]
[349769594,1737418255587,-1253.90937807,0.0002192,2]
[349769595,1737418255596,-1253.9,0.0002192,2]
[349769596,1737418255609,-39536.68908862,0.00021934,2]
[349769597,1737418255618,-4097.51,0.00021959,7]
[349769598,1737418255628,-4097.51,0.00021959,7]
[349769599,1737418255637,-400.0,0.0002197,2]
[349769600,1737418255646,-476.09307325,0.0002197,2]
[349769601,1737418255658,-1028.4,0.00021972,2]
[349769602,1737418255669,-104973.0,0.00021973,2]
[349769603,1737418255679,-150.0,0.00021973,4]
[349769604,1737418255688,-150.0,0.00021973,4]
[349769605,1737418255698,-150.0,0.00021973,4]
[349769606,1737418255707,-150.40627047,0.00021973,4]
[349769607,1737418255716,-500.33584631,0.00021973,2]
[349769608,1737418255725,-500.0,0.00021989,2]
[349769609,1737418255735,-695.21,0.00021989,2]
[349769610,1737418255744,-500.0,0.00021989,2]
[349769611,1737418255753,-500.0,0.00021989,2]
[349769612,1737418255762,-500.0,0.00021989,2]
[349769613,1737418255772,-500.0,0.00021989,2]
[349769614,1737418255781,-500.0,0.00021989,2]
[349769615,1737418255791,-500.0,0.00021989,2]
[349769616,1737418255799,-500.0,0.00021989,2]
[349769617,1737418255809,-500.0,0.00021989,2]
[349769618,1737418255818,-500.0,0.00021989,2]
[349769619,1737418255828,-500.0,0.00021989,2]
[349769620,1737418255839,-500.0,0.00021989,2]
[349769621,1737418255848,-500.0,0.00021989,2]
[349769622,1737418255857,-599.36,0.00021989,2]
[349769623,1737418255867,-500.0,0.00021989,2]
[349769624,1737418255876,-500.0,0.00021989,2]
[349769625,1737418255886,-591.26,0.00021989,2]
[349769626,1737418255895,-506.62,0.00021989,2]
[349769627,1737418255905,-538.4,0.00021989,2]
[349769628,1737418255914,-637.21,0.00021989,2]
[349769629,1737418255924,-504.65,0.00021989,2]
[349769630,1737418255933,-500.0,0.00021989,2]
[349769631,1737418255943,-1861.44,0.00021989,2]
[349769632,1737418255952,-703.6,0.00021989,2]
[349769633,1737418255961,-1188.94,0.00021989,2]
[349769634,1737418255971,-500.0,0.00021989,2]
[349769635,1737418255980,-500.0,0.00021989,2]
[349769636,1737418255990,-699.34,0.00021989,2]
[349769637,1737418255999,-1425.53,0.00021989,2]
[349769638,1737418256009,-500.0,0.00021989,2]
[349769639,1737418256019,-642.61,0.00021989,2]
[349769640,1737418256028,-802.3,0.00021989,2]
[349769641,1737418256038,-605.56,0.00021989,2]
[349769642,1737418256047,-664.27,0.00021989,2]
[349769643,1737418256058,-500.0,0.00021989,2]
[349769644,1737418256067,-186.68935048,0.00021989,2]
[349769645,1737418256077,-500.0,0.00021989,2]
[349769646,1737418256087,-730.71,0.00021989,2]
[349769647,1737418256097,-500.0,0.00021989,2]
[349769648,1737418256106,-500.0,0.00021989,2]
[349769649,1737418256116,-200.0,0.0002199,8]
[349769650,1737418256125,-500.0,0.0002199,2]
[349769651,1737418256135,-500.0,0.0002199,2]
[349769652,1737418256145,-500.0,0.0002199,2]
[349769653,1737418256154,-500.0,0.0002199,2]
[349769654,1737418256164,-500.0,0.0002199,2]
[349769655,1737418256173,-500.0,0.0002199,2]
[349769656,1737418256182,-500.0,0.0002199,2]
[349769657,1737418256191,-500.0,0.0002199,2]
[349769658,1737418256201,-703.05,0.0002199,2]
[349769659,1737418256210,-500.0,0.0002199,2]
[349769660,1737418256219,-500.0,0.0002199,2]
[349769661,1737418256229,-621.07,0.0002199,2]
[349769662,1737418256238,-1146.45,0.0002199,2]
[349769663,1737418256247,-251.293089,0.0002199,2]
[349769664,1737418256256,-817.86,0.0002199,2]
[349769665,1737418256265,-500.0,0.0002199,2]
[349769666,1737418256275,-500.0,0.0002199,2]
[349769667,1737418256284,-1131.27,0.0002199,2]
[349769668,1737418256294,-156.45728,0.0002199,2]
[349769669,1737418256303,-500.0,0.0002199,2]
[349769670,1737418256313,-500.0,0.0002199,2]
[349769671,1737418256324,-801.7,0.0002199,2]
[349769672,1737418256334,-500.0,0.0002199,2]
[349769673,1737418256344,-1535.42,0.0002199,2]
[349769674,1737418256354,-830.37,0.0002199,2]
[349769675,1737418256363,-829.35,0.0002199,2]
[349769676,1737418256372,-514.18,0.0002199,2]
[349769677,1737418256382,-1187.21,0.0002199,2]
[349769678,1737418256391,-500.0,0.0002199,2]
[349769679,1737418256401,-570.16,0.0002199,2]
[349769680,1737418256411,-703.91,0.0002199,2]
[349769681,1737418256422,-1413.53,0.0002199,2]
[349769682,1737418256433,-550.62,0.0002199,2]
[349769683,1737418256443,-894.6,0.0002199,2]
[349769684,1737418256452,-150.0,0.00021999,2]
[349769685,1737418256462,-456.58944005,0.00021999,10]
[349769686,1737418256471,-2000.0,0.00021999,2]
[349769687,1737418256481,-2000.0,0.00021999,2]
[349769688,1737418256490,-1000.0,0.00021999,2]
[349769689,1737418256500,-500.0,0.00021999,2]
[349769690,1737418256509,-324.87988418,0.00021999,2]
[349769691,1737418256519,-211.14710454,0.00022,2]
[349769692,1737418256530,-9320752.02936512,0.00022,2]
[349769693,1737418256540,-844.38777927,0.00022,2]
[349769694,1737418256550,-5915317.71123066,0.00022,2]
[349769695,1737418256561,-2386.65637307,0.00022,7]
[349769696,1737418256572,-150.0,0.00022,2]
[349769697,1737418256583,-3765.69863587,0.00022,2]
[349769698,1737418256592,-209.0,0.00022,2]
[349769699,1737418256603,-205.0,0.00022,2]
[349769700,1737418256613,-1800.0,0.00022,23]
[349769701,1737418256623,-379.0,0.00022,2]
[349769702,1737418256632,-212.0,0.00022,2]
[349769703,1737418256642,-210.0,0.00022,2]
[349769704,1737418256651,-212.0,0.00022,2]
[349769705,1737418256660,-223.0,0.00022,2]
[349769706,1737418256670,-206.0,0.00022,2]
[349769707,1737418256679,-150.0,0.00022,2]
[349769708,1737418256690,-150.0,0.00022,2]
[349769709,1737418256700,-150.0,0.00022,2]
[349769710,1737418256709,-150.0,0.00022,2]
[349769711,1737418256720,-82205.7616093,0.00022,2]
[349769712,1737418256729,-5478.13623304,0.00022,2]
[349769713,1737418256739,-176.28432287,0.00022,2]
[349769714,1737418256748,-3121.2222435,0.00022,2]
[349769715,1737418256758,-150.0,0.00022,2]
[349769716,1737418256767,-261.0,0.00022,2]
[349769717,1737418256776,-1458.75702988,0.00022,2]
[349769718,1737418256785,-208.0,0.00022,2]
[349769719,1737418256795,-1215.22,0.00022,2]
[349769720,1737418256804,-17522.58971931,0.00022,2]
[349769721,1737418256813,-210.0,0.00022,2]
[349769722,1737418256822,-1838.9079087,0.00022,5]
[349769723,1737418256832,-961830.25836447,0.00022,2]
[349769724,1737418257043,-12320.59073768,0.00022,2]
[349769725,1737418257054,-7445.7995253,0.00022,2]
[349769726,1737418257066,-45845.23245026,0.00022,2]
[349769727,1737418257083,-950.37858978,0.00022,2]
[349769728,1737418257096,-5093.0,0.00022,2]
[349769729,1737418257116,-500.0,0.00020419,2]